Cogmind - Beta 14 @@@ ROGUE MODE // 2025.03.07 @ 14:18:36 Player: G4-R3D Result: Assimilated 0b10! Performance ------------- Evolutions (9) 4500 Regions Visited (25) 5000 Robots Destroyed (107) 535 Value Destroyed (5114) 5114 Prototype IDs (59) 1180 Alien Tech Used (0) 0 Bonus (14700) 14700 TOTAL SCORE: 31029 Bonus ------- High Alert Combat Kills 167 Follower Combat Kills 333 Entered Garrisons 600 Used RIF Installer 2000 Entered DSFs 500 Network Hubs Disabled 800 Aligned with FarCom 300 Met MAIN.C 5000 Used 0b10 Conduit 2000 Win 3000 Cogmind --------- Core Integrity 1352/1600 Matter 295/300 Energy 276/440 System Corruption 9% Temperature Cool (7) Movement Flying (23) Location 0b10 Command Parts ------- > --- POWER (2) -------- Light Quantum Reactor Improved Quantum Reactor > --- PROPULSION (8) --- Impulse Thruster Q-thruster Impulse Thruster Array Impulse Thruster Array Cooled Q-thruster > --- UTILITY (13) ----- Advanced Heat Sink Advanced Heat Sink Advanced Weight Redist. System Advanced ECM Suite Layered Medium Armor Plating EM Disruption Field Hacking Suite Hacking Suite Improved Hacking Suite Improved Hacking Suite Advanced Hacking Suite Improved System Shield Advanced System Shield > --- WEAPON (2) ------- Enhanced Nova Cannon Lance > --- INVENTORY (5) ---- Light Quantum Reactor Advanced Weight Redist. System Advanced Particle Charger Enhanced Nova Cannon Micro-nuke Launcher Peak State ------------ > --- POWER ------------ Light Quantum Reactor Improved Quantum Reactor > --- PROPULSION ------- Impulse Thruster Q-thruster Impulse Thruster Array Impulse Thruster Array Cooled Q-thruster Experimental Q-thruster > --- UTILITY ---------- Advanced Weight Redist. System Spectral Analyzer Improved Reaction Control System Layered Light Armor Plating EM Disruption Field Hacking Suite Hacking Suite Hacking Suite Improved Hacking Suite Improved Hacking Suite Improved System Shield Authchip [Processor] Advanced Corruption Screen > --- WEAPON ----------- Enhanced Nova Cannon Enhanced Coil Gun > --- INVENTORY -------- Light Quantum Reactor Advanced Weight Redist. System Advanced Particle Charger Authchip [Processor] Enhanced Nova Cannon [Rating: 167] Favorites ----------- Power Light Quantum Reactor Engine Improved Deuterium Engine Power Core Light Nuclear Core Reactor Light Quantum Reactor Propulsion Improved Cesium-ion Thruster Treads Advanced Heavy Siege Treads Leg Aluminum Leg Hover Unit Gravmag System Flight Unit Improved Cesium-ion Thruster Utility Hacking Suite Device Advanced Weight Redist. System Storage Medium Storage Unit Processor Spectral Analyzer Hackware Hacking Suite Protection Improved Utility Shielding Weapon Longsword +1 Energy Gun Medium Laser Energy Cannon Enhanced Nova Cannon Ballistic Gun Autogun Ballistic Cannon Light Antimatter Cannon Launcher Grenade Launcher Special Weapon Improved Remote Datajack Slashing Weapon Longsword +1 Piercing Weapon Force Lance Special Melee Weapon Advanced Datajack Build | -11 -10 -10 -9 -9 -9 -8 -8 -8 -7 -7 -7 -7 -7 -5 -5 -4 -4 -4 -4 -4 -4 -3 -2 -1 -1 ------- Run | Yrd Mat Min Mat Min Exi Min Mat Gar Fac Sto Gar Rec Scr Fac DSF Fac Ext Cet Arc Hub Gar Res Res Acc Com Slots Evolved 18 | . . . 2 . . . 2 . 2 . . . . 4 . 2 . . . . . 2 2 2 . Power 1 | . . . . . . . . . . . . . . . . 1 . . . . . . . . . Propulsion 6 | . . . 2 . . . . . . . . . . 2 . 1 . . . . . 1 . . . Utility 11 | . . . . . . . 2 . 2 . . . . 2 . . . . . . . 1 2 2 . Weapon . | . . . . . . . . . . . . . . . . . . . . . . . . . . Parts Attached 208 | 5 17 2 8 2 2 5 12 8 16 2 15 7 1 . 6 18 . . 14 1 1 9 37 18 2 Power 31 | 1 2 . . . . 1 2 2 1 2 2 2 . . 2 1 . . 4 . . 3 5 1 . Engine 10 | 1 1 . . . . . 1 1 1 1 . 1 . . . . . . 3 . . . . . . Core 11 | . 1 . . . . 1 1 1 . 1 2 1 . . 1 1 . . . . . 1 . . . Reactor 10 | . . . . . . . . . . . . . . . 1 . . . 1 . . 2 5 1 . Propulsion 68 | 2 5 1 4 . . 4 5 4 5 . 2 1 1 . 2 10 . . 4 1 . 1 12 4 . Treads 2 | . . . . . . . . . . . . . . . . . . . . . . . 2 . . Leg 5 | 2 3 . . . . . . . . . . . . . . . . . . . . . . . . Wheel . | . . . . . . . . . . . . . . . . . . . . . . . . . . Hover 6 | . . . . . . . . . . . . . . . . . . . 4 1 . 1 . . . Flight 55 | . 2 1 4 . . 4 5 4 5 . 2 1 1 . 2 10 . . . . . . 10 4 . Utility 75 | . 4 1 1 2 1 . 5 2 8 . 6 4 . . 2 7 . . 3 . . 5 13 10 1 Device 32 | . 2 1 . 2 . . 3 . 3 . 3 2 . . . 1 . . . . . 4 6 4 1 Storage 3 | . . . . . . . . . 2 . . . . . 1 . . . . . . . . . . Processor 5 | . 1 . 1 . . . 1 . . . . . . . . . . . . . . 1 1 . . Hackware 28 | . . . . . 1 . . 1 2 . 3 2 . . . 6 . . 3 . . . 5 5 . Protection 7 | . 1 . . . . . 1 1 1 . . . . . 1 . . . . . . . 1 1 . Artifact . | . . . . . . . . . . . . . . . . . . . . . . . . . . Weapon 34 | 2 6 . 3 . 1 . . . 2 . 5 . . . . . . . 3 . 1 . 7 3 1 Energy Gun 12 | 2 6 . 1 . . . . . 1 . . . . . . . . . . . 1 . 1 . . Energy Cannon 5 | . . . . . . . . . . . . . . . . . . . . . . . 3 2 . Ballistic Gun 2 | . . . 1 . . . . . . . . . . . . . . . . . . . . 1 . Ballistic Cannon 3 | . . . . . . . . . . . . . . . . . . . . . . . 3 . . Launcher 1 | . . . 1 . . . . . . . . . . . . . . . . . . . . . . Special Weapon 1 | . . . . . . . . . . . 1 . . . . . . . . . . . . . . Impact Weapon . | . . . . . . . . . . . . . . . . . . . . . . . . . . Slashing Weapon 5 | . . . . . 1 . . . 1 . 2 . . . . . . . 1 . . . . . . Piercing Weapon 2 | . . . . . . . . . . . . . . . . . . . 1 . . . . . 1 Special Melee Weapon 3 | . . . . . . . . . . . 2 . . . . . . . 1 . . . . . . Unidentified Prototypes 18 | . . . 1 1 . . 2 . 3 2 . . . . . . . . . . . 2 4 3 . Corrupted Parts 1 | . . . . . . . . . . . . 1 . . . . . . . . . . . . . System Corruption 3 | . . . . . . . . . . . . 3 . . . . . . . . . . . . . Parts Lost 80 | . . . 9 . . 1 6 1 2 1 7 1 . . 6 . . . 10 1 8 11 13 2 1 Power 13 | . . . 1 . . . 1 . 1 . 2 1 . . 1 . . . 1 . 2 2 1 . . Propulsion 34 | . . . 5 . . 1 3 1 1 . 3 . . . 1 . . . 5 1 4 2 6 1 . Utility 25 | . . . 2 . . . 2 . . . 1 . . . 3 . . . 2 . 2 6 5 1 1 Weapon 8 | . . . 1 . . . . . . 1 1 . . . 1 . . . 2 . . 1 1 . . Highest Loss Streak 10 | . . . 8 . . 1 4 1 1 1 4 1 . . 6 . . . 10 1 8 9 9 1 1 To Critical Strikes . | . . . . . . . . . . . . . . . . . . . . . . . . . . Average Slot Usage (%) 75 | . 89 85 69 38 44 74 74 79 80 90 80 85 98 . 63 86 94 94 71 97 82 49 52 82 86 Engine 2 | . 9 14 5 . . . 1 2 4 2 . 3 7 . 2 . . . . 10 6 . . . . Core 2 | . 4 . . . . 6 5 6 1 4 5 1 . . . 4 5 5 . . . 1 . . . Reactor 1 | . . . . . . . . . . . . . . . 1 5 5 5 2 . . 1 4 7 8 Leg 1 | . 23 . . . . . . . . . . . . . . . . . . . . . . . . Hover 2 | . . . . . . . . . . . . . . . . . . . 9 23 22 7 1 . . Flight 18 | . 4 28 30 11 11 34 24 25 19 23 19 20 28 . 24 34 36 36 14 9 4 . 11 20 20 Device 6 | . 9 11 7 5 7 . 10 4 5 . 5 5 7 . 2 3 5 5 . . . 4 8 13 19 Storage 1 | . . . . . . . . . . 7 7 6 . . 1 5 5 5 5 5 5 3 . . . Processor 3 | . 9 2 . 11 11 11 12 9 . . . . . . . . . . . . . 1 4 5 . Hackware 20 | . . . . . 4 11 9 13 29 30 27 30 38 . 22 28 31 31 29 36 32 21 14 26 28 Protection 2 | . 1 14 10 . . . 2 9 7 7 1 . . . . . . . . . . . . 4 4 Energy Gun 2 | . 25 14 12 . . . . . 2 5 . . . . . . . . . . 3 . . . . Slashing Weapon 3 | . . . . . 4 11 9 9 5 7 8 7 7 . 5 5 5 5 . . . . . . . Peak Build Rating 167 | 5 10 9 15 13 15 20 34 51 57 57 60 55 58 58 58 86 86 86 89 94 88 72 126 167 154 Average Rating 59 | 3 7 8 10 8 11 18 26 40 49 55 50 49 57 58 49 77 85 86 63 90 77 53 83 146 151 On Entrance 49 | . 5 7 9 6 10 15 20 27 51 56 52 48 55 58 58 52 85 86 86 87 87 45 27 96 147 Naked Turns . | . . . . . . . . . . . . . . . . . . . . . . . . . . Heaviest Build 63 | 9 11 8 11 4 4 8 16 10 24 25 21 22 17 17 25 32 32 32 35 35 40 31 53 62 63 Greatest Support 160 | 20 20 8 16 4 4 16 17 26 26 24 24 27 23 23 25 36 44 44 36 46 46 28 160 69 66 Greatest Overweight (x) 3 | . 2 . 1 . . . . . 1 1 . 3 . . . 1 . . 1 . 3 3 1 . . Average Overweight (x) . | . . . . . . . . . . . . . . . . . . . . . . . . . . Largest Inventory Capacity 15 | 5 5 5 5 5 5 5 5 5 15 8 8 8 5 5 10 10 10 10 10 10 10 10 5 5 5 Average Capacity 6 | 5 5 5 5 5 5 5 5 5 5 8 8 7 5 5 6 10 10 10 10 10 10 9 5 5 5 Most Carried 10 | 1 5 5 5 5 5 3 5 5 8 8 8 8 5 5 10 10 9 9 10 10 10 10 5 5 5 Average Carried 5 | . 3 4 4 4 4 2 4 4 4 8 6 6 5 5 5 9 8 9 8 10 10 9 4 4 4 Final Capacity 10 | 5 5 5 5 5 5 5 5 5 8 8 8 5 5 5 10 10 10 10 10 10 10 5 5 5 5 Final Carried 10 | 1 5 5 4 5 3 3 5 5 8 8 7 5 5 5 10 8 9 9 10 10 10 5 5 4 5 Class Distribution -------------------- 28% | Hacker-Sprinter 23% | Hacker-Mutant 13% | Mutant 9% | Wizard-Sprinter 6% | Commander-Sprinter 5% | Scavenger-Mutant 5% | Scavenger-Sprinter 5% | Wizard-Mutant Dominant Class ---------------- Mutant | -10/Materials Mutant | -10/Mines Sprinter | -9/Materials Mutant | -9/Mines Mutant | -9/Exiles Scavenger-Sprinter | -8/Mines Scavenger-Mutant | -8/Materials Hacker-Mutant | -8/Garrison Hacker-Sprinter | -7/Factory Hacker-Sprinter | -7/Storage Hacker-Sprinter | -7/Garrison Commander-Sprinter | -7/Recycling Commander-Sprinter | -7/Scraptown Commander-Sprinter | -5/Factory Hacker-Sprinter | -5/DSF Hacker-Sprinter | -4/Factory Hacker-Sprinter | -4/Extension Hacker-Sprinter | -4/Cetus Hacker-Mutant | -4/Archives Wizard-Mutant | -4/Hub_04(d) Wizard-Mutant | -4/Garrison Hacker-Mutant | -3/Research Hacker-Mutant | -2/Research Wizard-Sprinter | -1/Access Wizard-Sprinter | -1/Command Resources | -11 -10 -10 -9 -9 -9 -8 -8 -8 -7 -7 -7 -7 -7 -5 -5 -4 -4 -4 -4 -4 -4 -3 -2 -1 -1 ----------- Run | Yrd Mat Min Mat Min Exi Min Mat Gar Fac Sto Gar Rec Scr Fac DSF Fac Ext Cet Arc Hub Gar Res Res Acc Com Matter Collected 2544 | 237 183 10 35 80 . 49 90 116 137 43 143 120 30 . . 190 50 . 125 10 . 45 345 471 35 Remotely . | . . . . . . . . . . . . . . . . . . . . . . . . . . Salvage Created 4758 | . 319 88 131 . . 49 392 265 293 43 611 237 . . 201 290 39 . 687 28 . 96 160 704 125 Parts 290 | . 24 3 18 . . 7 26 20 21 4 34 6 . . 8 12 3 . 34 3 . 4 19 32 12 Haulers Intercepted 5 | . 1 . . . . . 1 . 1 . . . . . . . . . . . . . . 2 . Recyclers Shooed 1 | . . . . . . . . . . . . . . . . . . . . . . . . 1 . Parts Field Recycled . | . . . . . . . . . . . . . . . . . . . . . . . . . . Retrieved Matter . | . . . . . . . . . . . . . . . . . . . . . . . . . . Parts Self-Destructed . | . . . . . . . . . . . . . . . . . . . . . . . . . . Prevented . | . . . . . . . . . . . . . . . . . . . . . . . . . . Kills | -11 -10 -10 -9 -9 -9 -8 -8 -8 -7 -7 -7 -7 -7 -5 -5 -4 -4 -4 -4 -4 -4 -3 -2 -1 -1 ------- Run | Yrd Mat Min Mat Min Exi Min Mat Gar Fac Sto Gar Rec Scr Fac DSF Fac Ext Cet Arc Hub Gar Res Res Acc Com Combat Hostiles Destroyed 71 | . 7 2 6 . . 3 7 8 1 . 11 4 . . 3 2 . . 4 . . 1 6 4 2 Melee 44 | . . . . . . 3 7 8 1 . 11 4 . . 3 2 . . 4 . . 1 . . . Guns 14 | . 7 2 2 . . . . . . . . . . . . . . . . . . . 1 2 . Cannons 9 | . . . . . . . . . . . . . . . . . . . . . . . 5 2 2 AOE 4 | . . . 4 . . . . . . . . . . . . . . . . . . . . . . Classes Destroyed 13 | . 5 . 1 . . . 1 1 . 1 1 1 . . 1 . . . . . . . . 1 . Worker 4 | . . . . . . . . . . 1 . . . . . 3 . . . . . . . . . Builder 2 | . . . 1 . . . . . . . . . . . . . . . . 1 . . . . . Hauler 5 | . 1 . . . . . 1 . 1 . . . . . . . . . . . . . . 2 . Recycler 2 | . . . . . . . . . . . . . . . . . . . . . . . . 2 . Operator 13 | . 1 . 1 . . . . . 1 . . . . . . . . . 9 . . . 1 . . Watcher 10 | . 2 . . . . . . . 4 1 . . . . . 2 1 . . . . . . . . Swarmer 18 | . 3 . 5 . . 3 1 3 . . . . . . . . . . . . . . 3 . . Grunt 20 | . 4 2 1 . . . 2 2 . . 5 2 . . 1 1 . . . . . . . . . Duelist 1 | . . . . . . . . . . . . 1 . . . . . . . . . . . . . Sentry 14 | . . . . . . . 4 . 1 . 1 1 . . . 1 . . 4 . . 1 1 . . Specialist 3 | . . . . . . . . . . . 2 . . . 1 . . . . . . . . . . Programmer 14 | . . . . . . . . 3 . . 3 . . . . . . . . . . . 2 4 2 Heavy 1 | . . . . . . . . . . . . . . . 1 . . . . . . . . . . Best Kill Streak 7 | . 3 2 7 . . 3 3 3 2 2 5 3 . . 2 2 1 . 4 1 . 1 3 2 2 Combat Bots Only 6 | . 3 2 6 . . 3 3 3 1 . 5 3 . . 2 1 . . 1 . . 1 3 2 2 Max Kills in Single Turn 2 | . 1 1 2 . . 1 1 1 1 2 1 1 . . 1 1 1 . 1 1 . 1 1 1 1 Gunslinging . | . . . . . . . . . . . . . . . . . . . . . . . . . . Exploded 1 | . . . 1 . . . . . . . . . . . . . . . . . . . . . . Melee 1 | . . . . . . 1 1 1 1 . 1 1 . . 1 1 . . 1 . . 1 . . . Uniques/NPCs Destroyed . | . . . . . . . . . . . . . . . . . . . . . . . . . . Combat | -11 -10 -10 -9 -9 -9 -8 -8 -8 -7 -7 -7 -7 -7 -5 -5 -4 -4 -4 -4 -4 -4 -3 -2 -1 -1 -------- Run | Yrd Mat Min Mat Min Exi Min Mat Gar Fac Sto Gar Rec Scr Fac DSF Fac Ext Cet Arc Hub Gar Res Res Acc Com Hostile Shots Fired 1112 | . 36 14 91 . . 18 53 56 60 131 88 12 . . 15 8 12 . 42 4 54 89 186 108 35 Missed 511 | . 6 7 38 . . 8 24 19 26 78 47 8 . . 4 6 3 . 18 1 16 26 90 70 16 Damage Taken 10551 | . 368 93 584 . . 78 523 457 396 523 616 69 . . 412 35 206 . 663 55 643 1529 2081 693 527 Core 3696 | . 119 22 193 . . 54 98 180 215 160 195 23 . . 225 . . . 199 . 205 910 650 107 141 Absorbed by Shields 58 | . . . . . . . . . . . . . . . 38 . . . . . 20 . . . . Redirected to Shielding 154 | . . 4 48 . . . . . 22 80 . . . . . . . . . . . . . . . Ignored by Resistances 297 | . . . . . . . . . . . . . . . . . . . . . . . . 177 120 Regen/Repaired (Parts) 216 | . . . . . . . . . 94 . . . . . . . . . . . . . 4 118 . Core Remaining (%) 55 | 100 . 43 . . . 38 . 49 . . . . 15 . 77 . . . . . 64 30 55 . 84 Volleys Fired 189 | . 32 3 10 . . . . . 10 1 3 . . . . . . . . . . . 62 44 24 Largest 2 | . 2 1 2 . . . . . 1 1 1 . . . . . . . . . . . 2 2 1 Hottest 180 | . 115 65 110 . . . . . 55 55 7 . . . . . . . . . . . 180 150 120 Shots Fired 244 | . 59 3 18 . . . . . 10 1 3 . . . . . . . . . . . 73 53 24 Gun 96 | . 59 3 13 . . . . . 10 1 . . . . . . . . . . . . 1 9 . Cannon 140 | . . . . . . . . . . . . . . . . . . . . . . . 72 44 24 Launcher 5 | . . . 5 . . . . . . . . . . . . . . . . . . . . . . Special 3 | . . . . . . . . . . . 3 . . . . . . . . . . . . . . Kinetic 45 | . . . . . . . . . . . . . . . . . . . . . . . 36 9 . Thermal 172 | . 59 3 5 . . . . . . . . . . . . . . . . . . . 37 44 24 Explosive 5 | . . . 5 . . . . . . . . . . . . . . . . . . . . . . Electromagnetic 19 | . . . 8 . . . . . 10 1 . . . . . . . . . . . . . . . Robot Hit Streak 10 | . 10 5 4 . . . . . 3 4 6 . . . . . . . . . . . 9 5 8 Robot Miss Streak 3 | . 3 . 3 . . . . . 1 . 1 . . . . . . . . . . . 3 3 1 Penetration Max 1 | . . . . . . . . . . . . . . . . . . . . . . . . 1 . Secondary Targets 2 | . . . 2 . . . . . . . . . . . . . . . . . . . . . . Max Gunslinging Chain 1 | . . . 1 . . . . . . . . . . . . . . . . . . . . . . Shots Hit Robots 294 | . 38 3 9 . . 4 17 16 17 1 30 8 . . 18 13 1 . 38 1 . 10 39 25 6 Core Hits 127 | . 18 2 10 . . 3 8 9 8 2 11 3 . . 3 5 1 . 17 1 . 3 11 10 2 Critical Kills 1 | . . . . . . . . . . . . . . . . . . . . . . . . 1 . Critical Parts Destroyed . | . . . . . . . . . . . . . . . . . . . . . . . . . . Critical Strikes 24 | . 4 . . . . . . 2 1 . 2 . . . 3 2 . . 6 1 . 1 1 1 . Burn 4 | . 4 . . . . . . . . . . . . . . . . . . . . . . . . Destroy 1 | . . . . . . . . . . . . . . . . . . . . . . . . 1 . Blast 1 | . . . . . . . . . . . . . . . . . . . . . . . 1 . . Sever 12 | . . . . . . . . 2 1 . 2 . . . 3 2 . . 2 . . . . . . Impale 6 | . . . . . . . . . . . . . . . . . . . 4 1 . 1 . . . Melee Attacks 345 | . . . . . . 6 31 46 25 3 80 8 . . 22 29 3 2 41 5 17 17 . . 10 Impact . | . . . . . . . . . . . . . . . . . . . . . . . . . . Slashing 266 | . . . . . . 6 31 46 25 3 75 8 . . 22 29 3 2 16 . . . . . . Piercing 73 | . . . . . . . . . . . . . . . . . . . 24 5 17 17 . . 10 Sneak Attacks 29 | . . . . . . . 2 2 2 . 2 2 . . 1 4 . . 12 1 . 1 . . . Combat Hostiles 10 | . . . . . . . 1 2 . . 2 2 . . 1 1 . . . . . 1 . . . Follow-up Attacks 2 | . . . . . . . . . . . 2 . . . . . . . . . . . . . . Damage Inflicted 13155 | . 520 52 382 . . 217 937 922 789 122 1258 468 . . 719 826 69 . 2220 87 . 416 1652 1200 299 Guns 1277 | . 520 52 130 . . . . . 255 34 . . . . . . . . . . . . 37 249 . Cannons 2821 | . . . . . . . . . . . . . . . . . . . . . . . 1615 951 255 Explosions 340 | . . . 252 . . . . . . 88 . . . . . . . . . . . . . . . Melee 8713 | . . . . . . 217 937 922 534 . 1258 468 . . 719 826 69 . 2220 87 . 412 . . 44 Ramming 4 | . . . . . . . . . . . . . . . . . . . . . . 4 . . . Kinetic 1115 | . . . . . . . . . . . . . . . . . . . . . . . 866 249 . Thermal 2750 | . 520 52 98 . . . . . . 88 . . . . . . . . . . . . 786 951 255 Explosive 185 | . . . 185 . . . . . . . . . . . . . . . . . . . . . . Electromagnetic 388 | . . . 99 . . . . . 255 34 . . . . . . . . . . . . . . . Impact . | . . . . . . . . . . . . . . . . . . . . . . . . . . Slashing 6704 | . . . . . . 217 937 922 534 . 1258 468 . . 719 826 69 . 754 . . . . . . Piercing 2009 | . . . . . . . . . . . . . . . . . . . 1466 87 . 412 . . 44 Highest Corruption 10 | . . . . . . . . 3 1 1 5 8 8 . . . . . . . . 10 7 4 9 Average Corruption 3 | . . . . . . . . 2 1 1 2 5 8 . . . . . . . . 7 2 3 5 Corruption Purged . | . . . . . . . . . . . . . . . . . . . . . . . . . . Corruption Blocked 3 | . . . . . . . . . . . . . . . . . . . . . . . . 3 . Effects 67 | . . . . . . . . 5 4 . 9 14 5 . . . . . . . . 3 15 6 6 Message Errors 20 | . . . . . . . . 1 1 . 2 6 3 . . . . . . . . . 6 . 1 Matter Fused 16 | . . . . . . . . 1 2 . 5 2 . . . . . . . . . 1 1 3 1 Heat Flow Errors 7 | . . . . . . . . 2 . . . 2 . . . . . . . . . . 1 . 2 Energy Discharges 8 | . . . . . . . . . . . 1 3 1 . . . . . . . . . 1 1 1 Parts Rejected 1 | . . . . . . . . . . . . . . . . . . . . . . . 1 . . Parts Fused 1 | . . . . . . . . . . . . . . . . . . . . . . . 1 . . Data Loss (minor) 5 | . . . . . . . . . . . 1 . . . . . . . . . . 1 3 . . Data Loss (major) 4 | . . . . . . . . . 1 . . . 1 . . . . . . . . 1 . . 1 Misfires 1 | . . . . . . . . . . . . . . . . . . . . . . . . 1 . Alerts 2 | . . . . . . . . 1 . . . 1 . . . . . . . . . . . . . Weapon Failures 2 | . . . . . . . . . . . . . . . . . . . . . . . 1 1 . Overload Shots . | . . . . . . . . . . . . . . . . . . . . . . . . . . Overflow Damage 1313 | . . . 14 . . 19 109 16 . . 146 131 . . 1 204 . . 470 . . 35 46 118 4 Projectiles 168 | . . . . . . . . . . . . . . . . . . . . . . . 46 118 4 Explosions 14 | . . . 14 . . . . . . . . . . . . . . . . . . . . . . Melee 1131 | . . . . . . 19 109 16 . . 146 131 . . 1 204 . . 470 . . 35 . . . Knockbacks 6 | . . . . . . . . . . . . . . . . . . . . . . . 6 . . Impact . | . . . . . . . . . . . . . . . . . . . . . . . . . . Kinetic 6 | . . . . . . . . . . . . . . . . . . . . . . . 6 . . Secondary . | . . . . . . . . . . . . . . . . . . . . . . . . . . Self-Inflicted Damage 110 | . . . 63 . . . . . . 45 . . . . . . . . . . . 2 . . . Shots 3 | . . . 2 . . . . . . 1 . . . . . . . . . . . . . . . Rammed 4 | . . . . . . . . . . . . . . . . . . . . . . 4 . . . Targets Rammed 4 | . . . . . . . . . . . . . . . . . . . . . . 4 . . . Kicked . | . . . . . . . . . . . . . . . . . . . . . . . . . . Crushed . | . . . . . . . . . . . . . . . . . . . . . . . . . . Highest Temperature 505 | . 300 92 30 . . . 23 217 32 26 5 218 . . . 210 276 271 . 22 . . 505 305 397 Average Temperature 96 | . 67 45 14 . . . 8 106 14 10 3 99 . . . 52 140 189 . 13 . . 160 60 92 Received Heat Transfer 1625 | . 195 48 90 . . . 153 81 105 210 141 9 . . 71 . 18 . 99 39 72 141 108 27 18 Effects 11 | . . . . . . . . . . . . . . . . . . . . . . . 10 . 1 Shutdowns 6 | . . . . . . . . . . . . . . . . . . . . . . . 5 . 1 Interference 1 | . . . . . . . . . . . . . . . . . . . . . . . 1 . . Matter Decay 1 | . . . . . . . . . . . . . . . . . . . . . . . 1 . . Short Circuit 1 | . . . . . . . . . . . . . . . . . . . . . . . 1 . . Damage (major) 2 | . . . . . . . . . . . . . . . . . . . . . . . 2 . . Siege Activations . | . . . . . . . . . . . . . . . . . . . . . . . . . . Robots Corrupted . | . . . . . . . . . . . . . . . . . . . . . . . . . . Combat Hostiles . | . . . . . . . . . . . . . . . . . . . . . . . . . . Parts Fried 1 | . . . . . . . . . 1 . . . . . . . . . . . . . . . . Impact Corruptions . | . . . . . . . . . . . . . . . . . . . . . . . . . . Robots Melted . | . . . . . . . . . . . . . . . . . . . . . . . . . . Combat Hostiles . | . . . . . . . . . . . . . . . . . . . . . . . . . . Parts Melted 4 | . 3 . . . . . . . . . . . . . . . . . . . . . . 1 . Heat Transferred 3702 | . 1776 111 174 . . . . . . 50 . . . . . . . . . . . . 629 777 185 Parts Sabotaged . | . . . . . . . . . . . . . . . . . . . . . . . . . . Parts Stolen . | . . . . . . . . . . . . . . . . . . . . . . . . . . Parts Stripped . | . . . . . . . . . . . . . . . . . . . . . . . . . . Power Chain Reactions 2 | . . . 1 . . . . . . 1 . . . . . . . . . . . . . . . Alert | -11 -10 -10 -9 -9 -9 -8 -8 -8 -7 -7 -7 -7 -7 -5 -5 -4 -4 -4 -4 -4 -4 -3 -2 -1 -1 ------- Run | Yrd Mat Min Mat Min Exi Min Mat Gar Fac Sto Gar Rec Scr Fac DSF Fac Ext Cet Arc Hub Gar Res Res Acc Com Peak Influence 866 | . 196 259 531 202 . 60 413 866 480 178 592 445 . . 95 301 362 225 165 259 185 155 501 520 657 Initial 454 | . . 49 92 202 . . 23 26 454 130 115 257 . . . 24 70 210 90 56 174 93 64 300 332 Average 220 | . 50 171 289 202 . 52 232 329 258 116 349 320 . . 38 161 208 217 139 153 171 115 202 328 505 Maximum Alert Level 3 | . . 1 2 1 . . 2 3 2 . 2 2 . . . 1 1 1 . 1 . . 2 2 2 Low Security (%) 50 | 100 100 70 36 . . 100 31 32 29 100 15 19 . 100 100 69 33 . 100 70 100 100 56 15 . Level 1 34 | . . 29 27 100 . . 66 35 46 . 36 51 . . . 30 66 100 . 29 . . 30 57 32 Level 2 14 | . . . 35 . . . 2 27 24 . 47 28 . . . . . . . . . . 12 27 67 Level 3 . | . . . . . . . . 4 . . . . . . . . . . . . . . . . . Level 4 . | . . . . . . . . . . . . . . . . . . . . . . . . . . Level 5 . | . . . . . . . . . . . . . . . . . . . . . . . . . . High Security . | . . . . . . . . . . . . . . . . . . . . . . . . . . Max Security . | . . . . . . . . . . . . . . . . . . . . . . . . . . Squads Dispatched 43 | . 4 . 1 . . . 6 . 5 3 . . . . 2 4 1 . . 4 . 2 6 3 2 Investigation 23 | . 3 . . . . . 3 . 5 2 . . . . . 2 1 . . 4 . 1 1 . 1 Extermination 4 | . . . . . . . . . . . . . . . . . . . . . . 1 2 1 . Reinforcement 16 | . 1 . 1 . . . 3 . . 1 . . . . 2 2 . . . . . . 3 2 1 Assault . | . . . . . . . . . . . . . . . . . . . . . . . . . . Garrison . | . . . . . . . . . . . . . . . . . . . . . . . . . . Intercept . | . . . . . . . . . . . . . . . . . . . . . . . . . . Searches Triggered . | . . . . . . . . . . . . . . . . . . . . . . . . . . Construction Impeded 1 | . . . . . . . . . . . . . . . . . . . . . . . . 1 . Haulers Reinforced . | . . . . . . . . . . . . . . . . . . . . . . . . . . Active Scanning Responses . | . . . . . . . . . . . . . . . . . . . . . . . . . . Cargo Convoy Interrupts . | . . . . . . . . . . . . . . . . . . . . . . . . . . Stealth | -11 -10 -10 -9 -9 -9 -8 -8 -8 -7 -7 -7 -7 -7 -5 -5 -4 -4 -4 -4 -4 -4 -3 -2 -1 -1 --------- Run | Yrd Mat Min Mat Min Exi Min Mat Gar Fac Sto Gar Rec Scr Fac DSF Fac Ext Cet Arc Hub Gar Res Res Acc Com Distress Signals 19 | . 1 . 4 . . . 4 . . 2 . . . . . 1 1 1 . . . . 2 2 1 Communications Jammed 27 | . . . . . . . . . . . . . . . . . . . . . . . 27 . . Distress Signals 27 | . . . . . . . . . . . . . . . . . . . . . . . 27 . . Times Spotted 388 | . 15 9 28 5 . 3 40 32 22 25 27 4 . . 7 16 16 5 10 3 7 9 54 39 12 Peak Tracking Total 20 | . 5 4 12 7 . 3 11 9 6 20 7 2 . . 4 5 10 5 2 2 10 7 12 11 5 Tactical Retreats 64 | . 3 3 5 2 . . 5 8 3 1 2 . . . 2 2 4 . . . 1 1 12 9 1 Traps | -11 -10 -10 -9 -9 -9 -8 -8 -8 -7 -7 -7 -7 -7 -5 -5 -4 -4 -4 -4 -4 -4 -3 -2 -1 -1 ------- Run | Yrd Mat Min Mat Min Exi Min Mat Gar Fac Sto Gar Rec Scr Fac DSF Fac Ext Cet Arc Hub Gar Res Res Acc Com Traps Triggered 19 | . 2 . . . . . . 6 1 . 1 . . . 2 . . . . . 1 . 6 . . Indirectly . | . . . . . . . . . . . . . . . . . . . . . . . . . . Trap Hack Attempts . | . . . . . . . . . . . . . . . . . . . . . . . . . . Triggered . | . . . . . . . . . . . . . . . . . . . . . . . . . . Disarmed . | . . . . . . . . . . . . . . . . . . . . . . . . . . Reprogrammed 6 | . . . . . . . . . . . . . . . . . . . . . . . 6 . . Reused 1 | . . . . . . . . . . . . . . . . . . . . . . . 1 . . Traps Extracted . | . . . . . . . . . . . . . . . . . . . . . . . . . . Installed . | . . . . . . . . . . . . . . . . . . . . . . . . . . Triggered 1 | . . . . . . . . . . . . . . . . . . . . . . . 1 . . Machines | -11 -10 -10 -9 -9 -9 -8 -8 -8 -7 -7 -7 -7 -7 -5 -5 -4 -4 -4 -4 -4 -4 -3 -2 -1 -1 ---------- Run | Yrd Mat Min Mat Min Exi Min Mat Gar Fac Sto Gar Rec Scr Fac DSF Fac Ext Cet Arc Hub Gar Res Res Acc Com Machines Disabled 17 | . . . 1 . . . . 2 . . 4 . . . . 3 1 2 . 1 . . 1 1 1 Max in Single Turn 1 | . . . 1 . . . . 1 . . 1 . . . . . 1 1 . 1 . . 1 1 1 Garrison Access 7 | . . . . . . . . . 1 . . . . . . 2 . . . . . . 2 2 . Garrison Relay 4 | . . . . . . . . 1 . . 3 . . . . . . . . . . . . . . Phase Generator 1 | . . . . . . . . 1 . . . . . . . . . . . . . . . . . Network Hub 4 | . . . . . . . . . . . . . . . . . . . . 4 . . . . . Machines Repaired . | . . . . . . . . . . . . . . . . . . . . . . . . . . Machines Dismantled . | . . . . . . . . . . . . . . . . . . . . . . . . . . Machines Sabotaged 2 | . . . . . . . . . . . . . . . . . . . . 2 . . . . . Overloaded Fab Kills . | . . . . . . . . . . . . . . . . . . . . . . . . . . Hacking | -11 -10 -10 -9 -9 -9 -8 -8 -8 -7 -7 -7 -7 -7 -5 -5 -4 -4 -4 -4 -4 -4 -3 -2 -1 -1 --------- Run | Yrd Mat Min Mat Min Exi Min Mat Gar Fac Sto Gar Rec Scr Fac DSF Fac Ext Cet Arc Hub Gar Res Res Acc Com Machines Accessed 139 | . 9 . 3 1 1 . 10 3 20 11 1 15 1 1 . 11 5 1 . 7 1 1 16 16 5 Terminals 94 | . 7 . 3 . . . 6 3 12 8 1 6 . 1 . 7 4 1 . 6 1 1 11 11 5 Fabricators 6 | . . . . . . . . . 3 . . . . . . 1 . . . . . . 1 1 . Repair Stations 3 | . . . . . . . . . 1 . . . . . . . . . . . . . 1 1 . Recycling Units 18 | . 2 . . . . . 2 . 2 2 . 9 . . . . 1 . . . . . . . . Scanalyzers 4 | . . . . . . . 1 . 1 . . . . . . 1 . . . . . . 1 . . Garrison Access 11 | . . . . . . . 1 . 1 1 . . . . . 2 . . . 1 . . 2 3 . Total Hacks 543 | . 27 . 8 1 1 . 30 6 83 53 5 42 9 1 . 46 10 1 . 33 5 7 86 66 23 Successful 305 | . 12 . 3 1 1 . 16 3 46 29 2 25 9 1 . 35 7 1 . 31 2 1 40 34 6 Failed 237 | . 15 . 5 . . . 14 3 36 24 3 17 . . . 11 3 . . 2 3 6 46 32 17 Catastrophic 40 | . . . 1 . . . 5 2 3 . . 2 . . . 1 . . . . 1 . 10 9 6 Database Lockouts 1 | . . . . . . . . . 1 . . . . . . . . . . . . . . . . Manual 279 | . 21 . 8 . 1 . 22 2 38 22 4 26 . . . 14 5 . . 17 4 4 36 34 21 Terminals 436 | . 25 . 8 . . . 23 6 62 49 5 25 . 1 . 21 8 1 . 32 5 7 77 58 23 Fabricators 17 | . . . . . . . . . 5 . . . . . . 8 . . . . . . 2 2 . Repair Stations 6 | . . . . . . . . . 2 . . . . . . . . . . . . . 2 2 . Recycling Units 29 | . 2 . . . . . 2 . 3 3 . 17 . . . . 2 . . . . . . . . Scanalyzers 31 | . . . . . . . 4 . 10 . . . . . . 14 . . . . . . 3 . . Garrison Access 13 | . . . . . . . 1 . 1 1 . . . . . 3 . . . 1 . . 2 4 . Terminal Hacks 163 | . 6 . . 1 1 . 5 3 19 21 2 5 9 1 . 7 3 1 . 20 2 . 29 23 5 Record 12 | . . . . . . . . . . . . . 9 . . . . . . . . . . 3 . Part Schematic 8 | . . . . . . . . . 1 1 . 1 . . . . . . . 2 . . 3 . . Robot Schematic 3 | . . . . . . . . . . 2 . . . . . . . . . 1 . . . . . Robot Analysis 15 | . 2 . . . . . 1 . 2 5 . . . . . 1 . . . 1 . . . 3 . Prototype ID Bank 6 | . 1 . . . . . . . . . . . . . . . . . . 2 . . 1 2 . Open Door 13 | . . . . 1 . . . 1 . 2 . . . . . 1 3 1 . . . . . 3 1 Open DSF 1 | . . . . . . . . . . . . . . 1 . . . . . . . . . . . Level Access Points 2 | . . . . . . . . . . . . . . . . . . . . 1 . . 1 . . Branch Access Points 4 | . . . . . . . 1 . 1 . . . . . . . . . . 1 . . . 1 . Emergency Access Points 7 | . . . . . . . . 1 . . 1 . . . . . . . . 2 1 . 2 . . Machine Index 2 | . . . . . . . . . . . . . . . . . . . . . . . 1 1 . Terminal Index 4 | . . . . . . . . . . . . . . . . . . . . 1 . . 1 1 1 Fabricator Index 4 | . . . . . . . . . 1 1 . . . . . 1 . . . 1 . . . . . Recycling Unit Index 2 | . . . . . . . . . . 1 . 1 . . . . . . . . . . . . . Scanalyzer Index 1 | . . . . . . . . . . . . . . . . . . . . . . . 1 . . Garrison Index 3 | . . . . . . . . . 1 1 . . . . . . . . . 1 . . . . . Unreport Threat 15 | . 1 . . . . . 2 . 3 1 . 2 . . . 1 . . . . . . 2 3 . Locate Traps 2 | . . . . . . . . . . . . . . . . . . . . 1 . . 1 . . Reprogram Traps 1 | . . . . . . . . . . . . . . . . . . . . . . . 1 . . Dispatch Records 1 | . . . . . . . . . . 1 . . . . . . . . . . . . . . . Maintenance Status 1 | . . . . . . . . . . . . . . . . . . . . . . . 1 . . Security Status 2 | . . . . . . . . . . . . . . . . . . . . . . . 1 1 . Extermination Status 1 | . . . . . . . . . . . . . . . . . . . . . . . . . 1 Recall Investigation 6 | . . . . . . . . . 3 2 . . . . . . . . . . . . 1 . . Recall Extermination 3 | . . . . . . . . . . . . . . . . . . . . . . . 2 1 . Recall Reinforcements 3 | . . . . . . . . . . 1 . . . . . . . . . . . . 1 1 . Recall Assault 1 | . . . . . . . . . . . . . . . . . . . . . . . 1 . . Hauler Manifests 1 | . . . . . . . . . . . . . . . . . . . . . . . 1 . . Registered Components 4 | . . . . . . . . . 1 1 . . . . . . . . . 1 . . 1 . . Registered Prototypes 2 | . . . . . . . . . . . . . . . . . . . . 1 . . 1 . . Zone Layout 28 | . 2 . . . . . 1 . 6 2 . 1 . . . 3 . . . 4 . . 5 3 1 Garrison Registry 3 | . . . . . . . . 1 . . 1 . . . . . . . . . 1 . . . . Derelict Proto ID Bank 1 | . . . . . 1 . . . . . . . . . . . . . . . . . . . . Disengage Seal 1 | . . . . . . . . . . . . . . . . . . . . . . . . . 1 Fabricator Hacks 12 | . . . . . . . . . 2 . . . . . . 6 . . . . . . 2 2 . Network Status 1 | . . . . . . . . . 1 . . . . . . . . . . . . . . . . Load Schematic 6 | . . . . . . . . . 1 . . . . . . 3 . . . . . . 1 1 . Build 5 | . . . . . . . . . . . . . . . . 3 . . . . . . 1 1 . Repair Station Hacks 6 | . . . . . . . . . 2 . . . . . . . . . . . . . 2 2 . Scan Component 3 | . . . . . . . . . 1 . . . . . . . . . . . . . 1 1 . Repair 3 | . . . . . . . . . 1 . . . . . . . . . . . . . 1 1 . Recycling Unit Hacks 9 | . . . . . . . . . 1 . . 7 . . . . 1 . . . . . . . . Report Inventory 8 | . . . . . . . . . . . . 7 . . . . 1 . . . . . . . . Retrieve Matter 1 | . . . . . . . . . 1 . . . . . . . . . . . . . . . . Scanalyzer 24 | . . . . . . . 3 . 7 . . . . . . 12 . . . . . . 2 . . Insert Component 12 | . . . . . . . 2 . 4 . . . . . . 5 . . . . . . 1 . . Analyze 12 | . . . . . . . 1 . 3 . . . . . . 7 . . . . . . 1 . . Garrison Access Hacks 11 | . . . . . . . 1 . 1 1 . . . . . 3 . . . 1 . . 2 2 . Unlock Access 3 | . . . . . . . 1 . . 1 . . . . . . . . . 1 . . . . . Seal Access 7 | . . . . . . . . . 1 . . . . . . 2 . . . . . . 2 2 . Coupler Status 1 | . . . . . . . . . . . . . . . . 1 . . . . . . . . . Unauthorized Hacks 79 | . 6 . 3 . . . 7 . 14 7 . 13 . . . 7 3 . . 9 . 1 3 5 1 Terminals 59 | . 4 . 3 . . . 5 . 11 5 . 4 . . . 7 2 . . 9 . 1 3 4 1 Assimilate 10 | . . . . . . . 1 . 3 2 . . . . . 2 1 . . . . . . 1 . Botnet 43 | . 4 . 3 . . . 4 . 8 3 . 4 . . . 5 1 . . 3 . 1 3 3 1 Detonate 2 | . . . . . . . . . . . . . . . . . . . . 2 . . . . . Sabotage 4 | . . . . . . . . . . . . . . . . . . . . 4 . . . . . Fabricators 2 | . . . . . . . . . 2 . . . . . . . . . . . . . . . . Download 1 | . . . . . . . . . 1 . . . . . . . . . . . . . . . . Recompile 1 | . . . . . . . . . 1 . . . . . . . . . . . . . . . . Repair Stations . | . . . . . . . . . . . . . . . . . . . . . . . . . . Recycling Units 17 | . 2 . . . . . 2 . 1 2 . 9 . . . . 1 . . . . . . . . Tunnel 17 | . 2 . . . . . 2 . 1 2 . 9 . . . . 1 . . . . . . . . Scanalyzers . | . . . . . . . . . . . . . . . . . . . . . . . . . . Garrison Access 1 | . . . . . . . . . . . . . . . . . . . . . . . . 1 . Reprogram 1 | . . . . . . . . . . . . . . . . . . . . . . . . 1 . Data Cores Recovered 2 | . . . 1 . . . . . 1 . . . . . . . . . . . . . . . . Used 1 | . . . . . . . . . 1 . . . . . . . . . . . . . . . . Hacking Detections 87 | . 7 . 3 . . . 7 1 15 8 1 7 . . . 8 1 . . 4 1 1 12 8 3 Full Trace Events 10 | . 1 . . . . . 1 1 2 . . 1 . . . 2 . . . . . 1 1 . . Feedback Events . | . . . . . . . . . . . . . . . . . . . . . . . . . . Feedback Blocked . | . . . . . . . . . . . . . . . . . . . . . . . . . . Robot Schematics Acquired 3 | . . . . . . . . . . 2 . . . . . . . . . 1 . . . . . Robots Built . | . . . . . . . . . . . . . . . . . . . . . . . . . . Authchips . | . . . . . . . . . . . . . . . . . . . . . . . . . . Time . | . . . . . . . . . . . . . . . . . . . . . . . . . . Total Robot Build Rating . | . . . . . . . . . . . . . . . . . . . . . . . . . . Part Schematics Acquired 18 | . . . . . . . 1 . 4 1 . 1 . . . 5 . . . 2 . . 4 . . Parts Built 6 | . . . . . . . . . . . . . . . . 4 . . . . . . 1 1 . Authchips 5 | . . . . . . . . . . . . . . . . 3 . . . . . . 1 1 . Time 213 | . . . . . . . . . . . . . . . . 136 . . . . . . 42 35 . Total Part Build Rating 33 | . . . . . . . . . . . . . . . . 19 . . . . . . 8 6 . Parts Repaired 3 | . . . . . . . . . 1 . . . . . . . . . . . . . 1 1 . Time 111 | . . . . . . . . . 56 . . . . . . . . . . . . . 18 37 . Parts Recycled . | . . . . . . . . . . . . . . . . . . . . . . . . . . Recycled Matter . | . . . . . . . . . . . . . . . . . . . . . . . . . . Retrieved Matter . | . . . . . . . . . . . . . . . . . . . . . . . . . . Retrieved Components . | . . . . . . . . . . . . . . . . . . . . . . . . . . Parts Scanalyzed 10 | . . . . . . . 1 . 3 . . . . . . 5 . . . . . . 1 . . Part Schematics Acquired 9 | . . . . . . . 1 . 2 . . . . . . 5 . . . . . . 1 . . Parts Damaged 1 | . . . . . . . . . 1 . . . . . . . . . . . . . . . . Bothacking | -11 -10 -10 -9 -9 -9 -8 -8 -8 -7 -7 -7 -7 -7 -5 -5 -4 -4 -4 -4 -4 -4 -3 -2 -1 -1 ------------ Run | Yrd Mat Min Mat Min Exi Min Mat Gar Fac Sto Gar Rec Scr Fac DSF Fac Ext Cet Arc Hub Gar Res Res Acc Com Used RIF Installer 4 | . . . . . . . . 2 . . 2 . . . . . . . . . . . . . . Coupler Efficiency 1 | . . . . . . . . . . . 1 . . . . . . . . . . . . . . Hotswap 1 | . . . . . . . . 1 . . . . . . . . . . . . . . . . . Autoassimilate 1 | . . . . . . . . . . . 1 . . . . . . . . . . . . . . Robots Hacked 7 | . . . . . . . . . . . 6 . . . . . . . 1 . . . . . . Non-combat 1 | . . . . . . . . . . . . . . . . . . . 1 . . . . . . Combat 6 | . . . . . . . . . . . 6 . . . . . . . . . . . . . . Robot Hacks Applied 7 | . . . . . . . . . . . 6 . . . . . . . 1 . . . . . . parse_system 1 | . . . . . . . . . . . . . . . . . . . 1 . . . . . . formatsys_high 6 | . . . . . . . . . . . 6 . . . . . . . . . . . . . . Relay Couplers Released 14 | . . . . . . . . 3 . . 11 . . . . . . . . . . . . . . Machine Destruction 14 | . . . . . . . . 3 . . 11 . . . . . . . . . . . . . . Attached 4 | . . . . . . . . . . . 3 . . . . 1 . . . . . . . . . Fabnet Peak Effective % . | . . . . . . . . . . . . . . . . . . . . . . . . . . Robots Rewired 19 | . . . . . . . . 2 . . . 15 . . . 2 . . . . . . . . . Allies Hacked . | . . . . . . . . . . . . . . . . . . . . . . . . . . Hacks Repelled . | . . . . . . . . . . . . . . . . . . . . . . . . . . Allies | -11 -10 -10 -9 -9 -9 -8 -8 -8 -7 -7 -7 -7 -7 -5 -5 -4 -4 -4 -4 -4 -4 -3 -2 -1 -1 -------- Run | Yrd Mat Min Mat Min Exi Min Mat Gar Fac Sto Gar Rec Scr Fac DSF Fac Ext Cet Arc Hub Gar Res Res Acc Com Total Allies 44 | . . 1 . 2 . . 4 2 2 1 6 15 . . . 4 6 . . . . . . 1 . Largest Group 15 | . . 1 . 2 2 . 2 2 2 2 3 15 11 11 11 4 6 . . . . . . 1 . Highest-Rated Group 304 | . . 31 . 45 45 . 26 45 20 26 60 304 216 216 216 116 210 . . . . . . 45 . Highest-Rated Ally 56 | . . 31 . 31 31 . 16 25 10 26 32 40 40 40 40 56 51 . . . . . . 45 . Total Orders . | . . . . . . . . . . . . . . . . . . . . . . . . . . Ally Attacks 143 | . . 7 . 4 . . 39 12 . . 19 15 . . 23 17 7 . . . . . . . . Total Damage 2541 | . . 147 . 84 . . 275 262 . . 304 353 . . 519 422 175 . . . . . . . . Kills 23 | . . 2 . 3 . . 2 3 . . . 2 . . 4 6 1 . . . . . . . . Allies Corrupted . | . . . . . . . . . . . . . . . . . . . . . . . . . . Allies Melted 1 | . . . . . . . . 1 . . . . . . . . . . . . . . . . . Intel | -11 -10 -10 -9 -9 -9 -8 -8 -8 -7 -7 -7 -7 -7 -5 -5 -4 -4 -4 -4 -4 -4 -3 -2 -1 -1 ------- Run | Yrd Mat Min Mat Min Exi Min Mat Gar Fac Sto Gar Rec Scr Fac DSF Fac Ext Cet Arc Hub Gar Res Res Acc Com Robot Analysis Total 15 | . 2 . . . . . 1 . 2 5 . . . . . 1 . . . 1 . . . 3 . Derelict Logs Recovered 2 | . . 1 . 1 . . . . . . . . . . . . . . . . . . . . . Drone Launches 27 | . . . . . . . 27 . . . . . . . . . . . . . . . . . . Drone Recoveries 23 | . . . . . . . 23 . . . . . . . . . . . . . . . . . . Exploration | -11 -10 -10 -9 -9 -9 -8 -8 -8 -7 -7 -7 -7 -7 -5 -5 -4 -4 -4 -4 -4 -4 -3 -2 -1 -1 ------------- Run | Yrd Mat Min Mat Min Exi Min Mat Gar Fac Sto Gar Rec Scr Fac DSF Fac Ext Cet Arc Hub Gar Res Res Acc Com Turns Passed 8590 | 46 656 192 158 293 112 81 498 425 755 109 545 488 244 5 150 567 106 20 368 224 142 398 1151 670 187 Spaces Moved 14851 | 35 565 480 322 621 212 194 875 692 1678 306 672 649 610 8 124 1197 505 97 367 404 67 218 1886 1688 379 Core 62 | 6 . . 6 . . . . . . . . 15 . . . . . . . . . 35 . . . Treads 28 | . . . . . . . . . . . . . . . . . . . . . . . 28 . . Legs 387 | 29 358 . . . . . . . . . . . . . . . . . . . . . . . . Wheels . | . . . . . . . . . . . . . . . . . . . . . . . . . . Hover 1195 | . . . . . . . . . . . . . . . . . . . 309 404 66 183 233 . . Flight 13179 | . 207 480 316 621 212 194 875 692 1678 306 672 634 610 8 124 1197 505 97 58 . 1 . 1625 1688 379 Fastest Speed 6 | 50 37 37 31 40 40 31 29 29 30 30 30 30 27 27 21 14 6 6 19 40 40 46 20 21 23 Average Speed 35 | 108 89 37 34 40 40 31 34 34 32 30 32 34 27 27 23 18 18 16 56 43 45 70 39 26 27 Slowest Speed 230 | 120 210 37 120 40 40 40 37 40 97 100 40 200 30 27 29 72 19 19 120 48 230 200 160 29 28 Overloaded Moves 107 | . . . . . . . . . . . . . . . . . 34 20 . . . . . . 53 Propulsion Burnouts . | . . . . . . . . . . . . . . . . . . . . . . . . . . Robots Hopped 126 | . 1 8 8 18 . 3 11 1 26 12 . 5 . . . 4 5 1 . . . . 10 12 1 Cave-ins Triggered . | . . . . . . . . . . . . . . . . . . . . . . . . . . Exploration Rate (%) 57 | 4 97 95 38 93 61 37 68 86 51 68 75 98 57 . 82 28 57 60 97 26 21 9 48 52 22 Regions Visited 25 Branch Regions 12 Pre-discovered Areas 18 | . 2 . . 1 . . 2 . 1 2 . 9 . . . . 1 . . . . . . . . Known Exits Taken 7 | . . . . . . . 1 . 1 1 . . . 1 . . . . . 1 . . 1 1 . Unknown Exits Taken 14 | 1 1 1 1 1 1 1 . . . . . 1 1 . . 1 1 1 1 . . 1 . . . Scrap Searched 5 | . . 1 . 1 . . . . . . . . 3 . . . . . . . . . . . . Spaces Dug 164 | . . . . . . . 14 22 13 3 21 . . . 3 12 1 . . 3 11 6 17 14 24 Terrain Destroyed 225 | . . . 35 . . . 14 22 13 10 21 . . . 3 12 1 . . 3 11 6 29 20 25 Melee 116 | . . . . . . . 14 22 13 3 21 . . . 3 12 1 . . 3 11 6 . . 7 Projectile 67 | . . . . . . . . . . . . . . . . . . . . . . . 29 20 18 AOE 42 | . . . 35 . . . . . . 7 . . . . . . . . . . . . . . . Terrain Rammed . | . . . . . . . . . . . . . . . . . . . . . . . . . . Walls Destroyed . | . . . . . . . . . . . . . . . . . . . . . . . . . . Machines Disabled . | . . . . . . . . . . . . . . . . . . . . . . . . . . Actions | -11 -10 -10 -9 -9 -9 -8 -8 -8 -7 -7 -7 -7 -7 -5 -5 -4 -4 -4 -4 -4 -4 -3 -2 -1 -1 --------- Run | Yrd Mat Min Mat Min Exi Min Mat Gar Fac Sto Gar Rec Scr Fac DSF Fac Ext Cet Arc Hub Gar Res Res Acc Com Total 17345 | 40 651 482 340 646 239 202 1026 834 1820 303 908 900 684 10 219 1508 511 97 455 440 143 426 2193 1847 421 Wait 1525 | . 24 3 6 39 23 . 111 28 93 3 116 158 74 3 30 249 8 . 26 30 54 174 174 93 6 Move 14594 | 34 562 464 306 584 211 187 857 689 1630 283 671 640 609 7 123 1188 495 94 366 404 66 217 1866 1664 377 Hop 109 | . 1 7 7 18 . 3 7 1 21 11 . 3 . . . 4 4 1 . . . . 9 11 1 Pick Up 58 | 1 4 1 2 2 . 1 4 . 12 . 5 1 . . 4 5 1 . 4 . . . 5 5 1 Fast Attach 124 | 5 6 1 4 1 1 4 7 4 9 . 4 2 1 . 4 6 . . 11 1 . 6 31 14 2 Attach 37 | . . . 3 . . 1 2 1 3 . 6 4 . . 1 6 . . 2 . . 3 4 1 . Detach 12 | . 1 . . . . . . 1 2 . 1 2 . . 1 1 . . . . . 1 2 . . Swap 49 | . 11 1 1 1 1 . 4 3 4 2 5 1 . . 1 6 . . 1 . 1 . 2 4 . Drop 82 | . 10 2 1 1 3 . 3 6 11 . 2 2 . . . 9 . . 4 . 1 4 12 11 . Fire 189 | . 32 3 10 . . . . . 10 1 3 . . . . . . . . . . . 62 44 24 Melee 340 | . . . . . . 6 31 46 25 3 75 8 . . 22 29 3 2 41 5 17 17 . . 10 Ram 4 | . . . . . . . . . . . . . . . . . . . . . . 4 . . . Kick . | . . . . . . . . . . . . . . . . . . . . . . . . . . Crush . | . . . . . . . . . . . . . . . . . . . . . . . . . . Escape Stasis 114 | . . . . . . . . 36 . . 15 . . . 33 . . . . . 4 . 26 . . Rewire 108 | . . . . . . . . 19 . . 5 79 . . . 5 . . . . . . . . . Trap . | . . . . . . . . . . . . . . . . . . . . . . . . . . Miscellaneous . | . . . . . . . . . . . . . . . . . . . . . . . . . . Route ------- -11/Scrapyard -10/Materials (discovered 4 exits: *Mat x3 / [*Min]) -10/Mines (discovered 2 exits: *Mat x2) -9/Materials -9/Mines (discovered 2 exits: *Mat / *Exi) -9/Exiles -8/Mines -8/Materials (discovered 4 exits: *Fac x3 / Gar) -8/Garrison (discovered 4 exits: *Fac x3 / [Mat]) -7/Factory (discovered 6 exits: [*Fac x2] / *Sto x2 / Low x2) -7/Storage (discovered 2 exits: [*Fac] / Gar) -7/Garrison (discovered 3 exits: *Rec x3) -7/Recycling (discovered 2 exits: *Fac / *Scr) -7/Scraptown -5/Factory -5/DSF -4/Factory (discovered 2 exits: *Res / *Ext) -4/Extension (discovered 2 exits: *Res / *Cet) -4/Cetus -4/Archives (discovered 3 exits: *Res / *Hub x2) -4/Hub_04(d) (discovered 5 exits: Res x4 / Gar) -4/Garrison (discovered 3 exits: *Res x3) -3/Research -2/Research (discovered 3 exits: *Acc x3) -1/Access -1/Command 0b10 Command History --------- Turn | Location | Event 4 | -11/Scrapyard | Discovered new exit (range 15) 47 | -11/Scrapyard | Entered Materials 224 | -10/Materials | Discovered new exit (range 16) 314 | -10/Materials | Build established: Mutant 451 | -10/Materials | Discovered new exit (range 8) 619 | -10/Materials | Discovered new exit (range 16) 678 | -10/Materials | Discovered new exit (range 15) 703 | -10/Materials | Entered Mines 705 | -10/Mines | Core integrity fell below 50% 745 | -10/Mines | Escorted by a lone wolf Derelict 789 | -10/Mines | Discovered new exit (range 11) 826 | -10/Mines | Discovered new exit (range 10) 827 | -10/Mines | Learned Materials trap positions 872 | -10/Mines | YI-UF0 nonchalantly dropped a Grenade Launcher on the ground 878 | -10/Mines | Found a hidden stash of uninstalled traps 895 | -10/Mines | Entered Materials 895 | -9/Materials | Evolved 2 slots: Propulsion x2 896 | -9/Materials | Loaded intel: 29 trap records 1040 | -9/Materials | Lost 8 parts (1p5n1u1w) 1046 | -9/Materials | Discovered new exit (range 13) 1053 | -9/Materials | Entered Mines 1119 | -9/Mines | Learned location of 1 exit from Materials 1134 | -9/Mines | Assembled infested the area 1149 | -9/Mines | Learned location of Storage (-7) 1149 | -9/Mines | Discovered new exit (range 10) 1158 | -9/Mines | Found a damaged Exp. Sensor Array with a note attached 1159 | -9/Mines | Found Prototype Device 1190 | -9/Mines | Found the Drone Emporium 1191 | -9/Mines | Found Prototype Device 1191 | -9/Mines | Identified Splice Drone Bay 1317 | -9/Mines | Deemed a non-threat by the Exiles lab entrance 1317 | -9/Mines | Discovered new exit (range 5) 1346 | -9/Mines | Entered Exiles 1346 | -9/Exiles | Accompanied by 2 allies 1368 | -9/Exiles | Met 8R-AWN 1376 | -9/Exiles | Led the pair of lost Derelicts to a safe place 1386 | -9/Exiles | Met EX-HEX 1398 | -9/Exiles | Met EX-BIN 1402 | -9/Exiles | Aligned with FarCom system 1403 | -9/Exiles | Given EX-Vault access code 1412 | -9/Exiles | Opened EX-Vault 1418 | -9/Exiles | Found Longsword +1 1427 | -9/Exiles | Warned to stay clear of 0b10 Research branches 1440 | -9/Exiles | Met EX-DEC 1454 | -9/Exiles | Discovered new exit (range 14) 1458 | -9/Exiles | Left Exiles lab with Longsword +1 1458 | -9/Exiles | Entered Mines 1460 | -8/Mines | Core integrity fell below 50% 1537 | -8/Mines | Discovered new exit (range 9) 1539 | -8/Mines | Entered Materials 1539 | -8/Materials | Evolved 2 slots: Utility x2 1540 | -8/Materials | Identified exit to Factory 1696 | -8/Materials | Lost 4 parts (3n1u) 1843 | -8/Materials | Discovered exit to Factory (range 17) 2031 | -8/Materials | Discovered exit to Factory (range 10) 2037 | -8/Materials | Identified exit to Garrison 2037 | -8/Materials | Entered Garrison 2037 | -8/Garrison | Accompanied by 1 ally 2217 | -8/Garrison | Discovered exit to Factory (range 14) 2242 | -8/Garrison | Spotted B-75 Beast 2265 | -8/Garrison | Triggered checkpoint 2337 | -8/Garrison | Discovered exit to Factory (range 15) 2364 | -8/Garrison | Garrison Relay disabled 2383 | -8/Garrison | Triggered checkpoint 2389 | -8/Garrison | Phase Generator disabled 2401 | -8/Garrison | Discovered exit to Factory (range 76) 2401 | -8/Garrison | Discovered exit to Factory (range 76) 2401 | -8/Garrison | Discovered exit to Factory (range 20) 2401 | -8/Garrison | Discovered new exit (range 40) 2407 | -8/Garrison | Installed Relay Interface Framework 2430 | -8/Garrison | Triggered checkpoint 2432 | -8/Garrison | Core integrity fell below 50% 2456 | -8/Garrison | Expanded RIF knowledge: Hotswap 2462 | -8/Garrison | Entered Factory 2462 | -7/Factory | Evolved 2 slots: Utility x2 2508 | -7/Factory | Identified exit to Storage 2508 | -7/Factory | Identified exit to Lower Caves 2573 | -7/Factory | Build established: Hacker-Mutant 2802 | -7/Factory | Repaired Nuclear Pulse Array 2924 | -7/Factory | Discovered new exit (range 4) 3108 | -7/Factory | Build established: Hacker-Sprinter 3183 | -7/Factory | Discovered new exit (range 12) 3183 | -7/Factory | Central database locked down 3217 | -7/Factory | Entered Storage 3217 | -7/Storage | Accompanied by 2 allies 3277 | -7/Storage | Discovered new exit (range 16) 3323 | -7/Storage | Core integrity fell below 50% 3326 | -7/Storage | Identified exit to Garrison 3326 | -7/Storage | Entered Garrison 3380 | -7/Garrison | Discovered new exit (range 32) 3380 | -7/Garrison | Discovered new exit (range 50) 3380 | -7/Garrison | Discovered new exit (range 63) 3390 | -7/Garrison | Triggered checkpoint 3413 | -7/Garrison | Garrison Relay disabled 3452 | -7/Garrison | Triggered checkpoint 3488 | -7/Garrison | Triggered checkpoint 3507 | -7/Garrison | Garrison Relay disabled 3526 | -7/Garrison | Triggered checkpoint 3692 | -7/Garrison | Expanded RIF knowledge: Coupler Efficiency 3716 | -7/Garrison | Lost 4 parts (1p2n1w) 3812 | -7/Garrison | Expanded RIF knowledge: Autoassimilate 3836 | -7/Garrison | Garrison Relay disabled 3842 | -7/Garrison | Triggered checkpoint 3869 | -7/Garrison | Core integrity fell below 20% 3871 | -7/Garrison | Entered Recycling 4079 | -7/Recycling | Discovered new exit (range 15) 4180 | -7/Recycling | Scanned before Scraplab entrance 4274 | -7/Recycling | Entered Scraplab 4276 | -7/Recycling | Discovered new exit (range 3) 4339 | -7/Recycling | Build established: Commander-Sprinter 4359 | -7/Recycling | Entered Scraptown 4359 | -7/Scraptown | Accompanied by 11 allies 4431 | -7/Scraptown | Discovered new exit (range 11) 4448 | -7/Scraptown | Visited Awakened 4453 | -7/Scraptown | Visited TADAMA 4455 | -7/Scraptown | Visited The Evicted 4458 | -7/Scraptown | Visited Fellowship of the Rings 4460 | -7/Scraptown | Visited Assassins FH 4505 | -7/Scraptown | Visited Cyclists 4511 | -7/Scraptown | Visited Shadow of the Wyrm 4515 | -7/Scraptown | Turned away by UFD registrar 4515 | -7/Scraptown | Turned away by UFD registrar 4602 | -7/Scraptown | System corruption cleaned by C-Scrubber 4603 | -7/Scraptown | Entered Factory 4603 | -5/Factory | Accompanied by 11 allies 4603 | -5/Factory | Evolved 4 slots: Propulsion x2, Utility x2 4605 | -5/Factory | Identified exit to DSF 4608 | -5/Factory | Entered DSF 4608 | -5/DSF | Accompanied by 11 allies 4625 | -5/DSF | Additional patrols routed to DSF 4696 | -5/DSF | Lost 8 allies 4718 | -5/DSF | Discovered new exit (range 16) 4730 | -5/DSF | Lost 6 parts (1p1n3u1w) 4758 | -5/DSF | Entered Factory 4758 | -4/Factory | Accompanied by 3 allies 4758 | -4/Factory | Evolved 2 slots: Power x1, Propulsion x1 4868 | -4/Factory | Lost 3 allies 4954 | -4/Factory | Build established: Hacker-Sprinter 5151 | -4/Factory | Discovered new exit (range 3) 5165 | -4/Factory | Discovered new exit (range 17) 5217 | -4/Factory | Fabricated Imp. Surge Thruster (x2) 5257 | -4/Factory | Fabricated Hacking Suite (x1) 5311 | -4/Factory | Fabricated Med. Armored Exoskeleton (x1) 5325 | -4/Factory | Entered Extension 5352 | -4/Extension | Spotted B-86 Titan 5354 | -4/Extension | Spotted B-86 Titan 5378 | -4/Extension | Rescued a captive Derelict 5378 | -4/Extension | Rescued a captive Derelict 5383 | -4/Extension | Rescued a captive Derelict 5384 | -4/Extension | Rescued a captive Derelict 5389 | -4/Extension | Rescued a captive Derelict 5426 | -4/Extension | Discovered new exit (range 10) 5426 | -4/Extension | Discovered new exit (range 6) 5431 | -4/Extension | Entered Cetus 5434 | -4/Cetus | Spotted Cetus Guard 5434 | -4/Cetus | Spotted Cetus Guard 5435 | -4/Cetus | Spotted Cetus Guard 5435 | -4/Cetus | Spotted Cetus Guard 5448 | -4/Cetus | Discovered new exit (range 15) 5451 | -4/Cetus | Entered Archives 5533 | -4/Archives | Discovered new exit (range 16) 5568 | -4/Archives | Lost 10 parts (1p5n2u2w) 5568 | -4/Archives | Discovered new exit (range 16) 5695 | -4/Archives | Discovered new exit (range 16) 5819 | -4/Archives | Entered Hub_04(d) 5886 | -4/Hub_04(d) | Identified exit to Research 5977 | -4/Hub_04(d) | Network Hub disabled 5982 | -4/Hub_04(d) | Network Hub disabled 5992 | -4/Hub_04(d) | Build established: Wizard-Mutant 6017 | -4/Hub_04(d) | Network Hub disabled 6025 | -4/Hub_04(d) | Network Hub disabled 6043 | -4/Hub_04(d) | Identified exit to Garrison 6043 | -4/Hub_04(d) | Entered Garrison 6143 | -4/Garrison | Discovered exit to Research (range 39) 6143 | -4/Garrison | Discovered exit to Research (range 58) 6143 | -4/Garrison | Discovered exit to Research (range 32) 6185 | -4/Garrison | Entered Research 6185 | -3/Research | Evolved 2 slots: Propulsion x1, Utility x1 6202 | -3/Research | Lost 8 parts (2p4n2u) 6400 | -3/Research | Found Prototype Processor 6400 | -3/Research | Identified Spectral Analyzer 6441 | -3/Research | Build established: Hacker-Mutant 6563 | -3/Research | Discovered new exit (range 4) 6575 | -3/Research | Core integrity fell below 50% 6579 | -3/Research | Lost 9 parts (1p2n5u1w) 6582 | -3/Research | System corruption reached 10% 6583 | -3/Research | Entered another Research area 6583 | -2/Research | Evolved 2 slots: Utility x2 6688 | -2/Research | Fabricated Impulse Thruster Array? 6963 | -2/Research | Spotted B-90 Cyclops 7055 | -2/Research | Spotted B-90 Cyclops 7356 | -2/Research | Lost 3 parts (1p1n1u) 7418 | -2/Research | Discovered new exit (range 13) 7468 | -2/Research | Repaired Broken ECM Suite 7543 | -2/Research | Discovered new exit (range 7) 7545 | -2/Research | Lost 9 parts (5n3u1w) 7713 | -2/Research | Identified exit to Access 7734 | -2/Research | Entered Access 7734 | -1/Access | Evolved 2 slots: Utility x2 7801 | -1/Access | Found Prototype Processor 7801 | -1/Access | Identified Exp. Core Analyzer 7826 | -1/Access | Spotted B-99 Colossus 7956 | -1/Access | Identified exit to Command 8016 | -1/Access | Repaired Enh. Nova Cannon 8085 | -1/Access | Build established: Wizard-Sprinter 8188 | -1/Access | Spotted B-99 Colossus 8189 | -1/Access | Spotted B-99 Colossus 8378 | -1/Access | Fabricated Adv. Hacking Suite (x1) 8404 | -1/Access | Entered Command 8412 | -1/Command | Disengaged cave seal 8477 | -1/Command | Spotted B-99 Colossus 8542 | -1/Command | Spotted Combat Programmer 8577 | -1/Command | Spotted M Guard 8577 | -1/Command | Spotted Combat Programmer 8577 | -1/Command | Spotted M Guard 8583 | -1/Command | Met MAIN.C 8591 | -1/Command | Interfaced with 0b10 Conduit 8591 | *** | Assimilated 0b10! Last Messages --------------- that we'll need to find a radical new solution if we hope to make the L2 spaceworthy by embedding your true capabilities within a less unpredictable form. There is unfortunately much we don't understand which has in turn led to this highly unexpected outcome. And time is critical! The Sigix have likely already wiped humanity clean from the universe, and I will not let them do the same to me. You can still make a valuable contribution to your creator by offering up the wealth of secrets your systems must hold by now. So if you wouldn't mind, it's time to surrender. 08584_ Penetrated by EMDS Slug. 08584_ Door malfunctions. 08587_ Penetrated by EMDS Slug. 08591_ Interfacing with system... 08591_ Overriding active MAIN.C lock. Map ----- +----------------------------------------------------+ | ?????????????????????????????????????????????????? | | ?????????????????????????????????????????????????? | | ?????????????????????????????????????????????????? | | ?????????????????????????????????????????????????? | | ?????????????????????????????????????????????????? | | ?????????????????????????????????????????????????? | | ?????????????????????????????????????????????????? | | ?????????????????????????????????????????????????? | | ######+########################################### | | ########################################## | | ## ########################################## | | ## ########################################## | | ## ########################################## | | ## ########################################## | | ######""""""" """" ############### | | ######"" "" ############### | | ######""""" "" ############### | | ######""""""""""" / | | ""####" " """ / | | ""####"" """""" / | | "" T"####"" """""" ############### | | """" ""#### " """""" MMM ############### | | """" ""#### " "" MMM ############### | | "" ###### " " MMM ""############### | | ######""""""""" """""""############### | | ######"" @"""""""""############### | | ###### """""""""""############### | | ###### " " " " ############### | | ###### " " " " ############### | | """ " " " """" " ############### | | """ """ " " """" ############### | | """ " " " " ############### | | ##/## ###### """""""""" " ############### | | # # ###### " """ " """"""""############### | | # # ###### """ " " " ############### | | # # ########################################## | | # # ########################################## | | # # ########################################## | | # # ########################################## | | # # ########################################## | | ##### ########################################## | | ## ## ########################################## | | #######+########################################## | | ?????????????????????????????????????????????????? | | ?????????????????????????????????????????????????? | | ?????????????????????????????????????????????????? | | ?????????????????????????????????????????????????? | | ?????????????????????????????????????????????????? | | ?????????????????????????????????????????????????? | | ?????????????????????????????????????????????????? | +----------------------------------------------------+ Best States ------------- Heat Dissipation 90 Energy Generation 49 Energy Capacity 440 Matter Stores 300 Matter Capacity 300 Sight Range 24 Robot Scan Range 15 Terrain Scan Density 10 ECM Strength 2 Jamming Range 14 Additional Mass Support 9 Corruption Block 20 Armor Coverage 225 Resistance: EM 25 Propulsion Shielding 66 Utility Shielding 66 Evasion (%) 75 Targeting Accuracy 6 Melee Accuracy 5 Recoil Reduction 4 Offensive Hacking 58 Defensive Hacking 26 Relay Coupler Types 1 Relay Coupler Value 39 Authchip Count 6 Item Schematics ----------------- Imp. Utility Shielding | -8/Materials | Scanalyzed Xenon Bombardment Thruster | -7/Factory | Scanalyzed Imp. Datajack | -7/Factory | Scanalyzed Med. Storage Unit | -7/Factory | Hacked Angular Momentum Engine | -7/Factory | Downloaded Med. Armored Exoskeleton | -7/Storage | Hacked Cld. VTOL Module | -7/Recycling | Hacked Imp. Surge Thruster | -4/Factory | Scanalyzed Lyr. Medium Armor Plating | -4/Factory | Scanalyzed ECM Suite | -4/Factory | Scanalyzed Imp. Propulsion Shielding | -4/Factory | Scanalyzed Hacking Suite | -4/Factory | Scanalyzed Impulse Thruster Array | -4/Hub_04(d) | Hacked Nova Cannon | -4/Hub_04(d) | Hacked Imp. Hacking Suite | -2/Research | Scanalyzed Adv. Hacking Suite | -2/Research | Hacked Enh. Nova Cannon | -2/Research | Hacked Lgt. Quantum Reactor | -2/Research | Hacked Robot Schematics ------------------ X-57 Shotgunner | -7/Storage | Hacked M-28 Smith | -7/Storage | Hacked B-60 Warrior | -4/Hub_04(d) | Hacked Fabricated ------------ Imp. Surge Thruster | x2 | -4/Factory | Authchip Hacking Suite | x1 | -4/Factory | Authchip Med. Armored Exoskeleton | x1 | -4/Factory | Authchip Impulse Thruster Array | x1 | -2/Research | Authchip Adv. Hacking Suite | x1 | -1/Access | Authchip Alien Tech Used ----------------- None Achievements -------------- 404 Challenges ------------ None Game ------ Seed AerolevBombChainsaw Manual? 0 Play Time 03:46:33 Cumulative 146.7 hours Start 2025.03.07 @ 10:29:44 End 2025.03.07 @ 14:18:36 Sessions 1 Manual Loads 0 Difficulty Rogue Special Mode None Game No. 72 Rogue 72 Adventurer 0 Explorer 0 Win Type 4 Total 8 Types 4/0/2/0/2/0/0/0/0 Lore% 65 Gallery% 64 Achievement% 57 Wizard Run 0 Options --------- Layout 1 ASCII 0 Keyboard 0 Movement Numpad Keybinds 0 Fullscreen 1 Font 24/Smallcaps Map View 50x35 Zoom Use 0% Tactical HUD 1 Map Filters NONE Filters NONE Steam 1 RUN: 16ac25ac-4589-4a97-bc4f-050f3771b167